bitfinex-derivatives/quotes_BTCF0:USTF0_20250626
["timestamp","ask_amount","ask_price","bid_price","bid_amount"]
[1750945577021,0.4906309,107250.0,107240.0,0.6194376]
[1750945577210,0.6770512,107250.0,107240.0,0.6194376]
[1750945577415,0.67673291,107250.0,107240.0,0.6194376]
[1750945577610,0.60276015,107250.0,107240.0,0.6194376]
[1750945578212,0.67673291,107250.0,107240.0,0.6194376]
[1750945580520,0.49031261,107250.0,107240.0,0.6194376]
[1750945580720,0.67673281,107250.0,107240.0,0.6194376]
[1750945582425,1.02235201,107250.0,107240.0,0.7669176]
[1750945583118,0.49047025,107250.0,107240.0,0.7669176]
[1750945583315,0.69550679,107250.0,107240.0,0.7669176]
[1750945583521,0.50908649,107250.0,107240.0,0.7669176]
[1750945583819,0.60276005,107250.0,107240.0,0.7669176]
[1750945584019,0.41633985,107250.0,107240.0,0.7669176]
[1750945584221,0.69550669,107250.0,107240.0,0.7669176]
[1750945585415,0.69550669,107250.0,107240.0,0.71095172]
[1750945586521,0.60276005,107250.0,107240.0,0.71095172]
[1750945587618,1.02235201,107250.0,107240.0,0.0306]
[1750945587918,1.17919865,107250.0,107240.0,0.3608]
[1750945588623,1.21199865,107250.0,107240.0,0.5472376]
[1750945588820,0.60276005,107250.0,107240.0,0.5472376]
[1750945589019,0.69550679,107250.0,107240.0,0.7568176]
[1750945589223,1.11509875,107250.0,107240.0,0.7568176]
[1750945589524,1.11509875,107250.0,107240.0,0.5776376]
[1750945589730,0.1864376,107240.0,107230.0,0.61187173]
[1750945590018,1.10549165,107240.0,107230.0,0.72766753]
[1750945590324,1.13639165,107240.0,107230.0,0.72766753]
[1750945590820,1.13639165,107240.0,107230.0,0.73166753]
[1750945591924,1.65795502,107240.0,107230.0,0.58418753]
[1750945592821,1.75070166,107240.0,107230.0,0.58418753]
[1750945593023,1.06836306,107240.0,107230.0,0.58418753]
[1750945593222,1.48795502,107240.0,107230.0,0.61038753]
[1750945593423,1.53139579,107240.0,107230.0,0.64358753]
[1750945594626,1.45705502,107240.0,107230.0,0.64358753]
[1750945595021,1.42385502,107240.0,107230.0,0.64358753]
[1750945595921,0.82797502,107240.0,107230.0,0.64358753]
[1750945598032,0.22194546,107240.0,107230.0,0.64358753]
[1750945598324,0.22194546,107240.0,107230.0,1.65789949]
[1750945599129,0.22194546,107240.0,107230.0,1.23830753]
[1750945599931,0.40838306,107240.0,107230.0,1.38434753]
[1750945600925,0.22194546,107240.0,107230.0,1.38434753]
[1750945601321,0.40838306,107240.0,107230.0,1.38434753]
[1750945601531,0.22194546,107240.0,107230.0,1.38434753]
[1750945601726,0.22194546,107240.0,107230.0,1.80393949]
[1750945602032,0.22194546,107240.0,107230.0,1.38434753]
[1750945603631,0.07434077,107250.0,107240.0,0.1864377]
[1750945603834,0.12434077,107250.0,107240.0,1.02922966]
[1750945604028,0.07434077,107250.0,107240.0,1.07922966]
[1750945604229,0.07434077,107250.0,107240.0,1.02922966]
[1750945604433,0.07434077,107260.0,107250.0,0.1864203]
[1750945604737,0.07434077,107260.0,107250.0,1.79941226]
[1750945605036,0.09274664,107270.0,107260.0,0.1864029]
[1750945605236,0.01,107270.0,107260.0,1.02919486]
[1750945605737,0.40268044,107290.0,107280.0,0.1863681]
[1750945605937,0.76268044,107290.0,107280.0,0.49120774]
[1750945606133,0.83846689,107290.0,107280.0,0.52270774]
[1750945606330,0.86856689,107290.0,107280.0,0.52270774]
[1750945606531,0.77582025,107290.0,107280.0,0.52270774]
[1750945607133,0.36,107290.0,107280.0,0.88350774]
[1750945607331,0.363,107290.0,107280.0,1.3331997]
[1750945607532,0.368,107290.0,107280.0,1.3331997]
[1750945607929,0.368,107290.0,107280.0,1.9281997]
[1750945608137,0.138,107290.0,107280.0,1.9281997]
[1750945609839,0.133,107290.0,107280.0,1.9281997]
[1750945610240,0.134,107290.0,107280.0,1.9281997]
[1750945611434,0.3203508,107290.0,107280.0,1.65376774]
[1750945612137,0.134,107290.0,107280.0,1.65376774]
[1750945612342,0.134,107290.0,107280.0,2.0733597]
[1750945613942,0.3203507,107290.0,107280.0,2.0733597]
[1750945614147,0.3203507,107290.0,107280.0,0.91360774]
[1750945614445,0.3203507,107290.0,107280.0,1.59196774]
[1750945614751,0.4156507,107290.0,107280.0,0.99772774]
[1750945615346,0.6056507,107290.0,107280.0,0.99772774]
[1750945616145,0.6056507,107290.0,107280.0,0.85200774]
[1750945616345,0.6056507,107290.0,107280.0,0.99772774]
[1750945617245,0.6056507,107290.0,107280.0,0.85200774]
[1750945617446,0.6056507,107290.0,107280.0,0.99772774]
[1750945618041,0.357,107290.0,107280.0,0.99772774]
[1750945618246,0.5433507,107290.0,107280.0,1.02862774]
[1750945618446,0.5433507,107290.0,107280.0,1.05862774]
[1750945619147,0.5433507,107290.0,107280.0,1.02862774]
[1750945620437,0.324,107290.0,107280.0,1.02862774]
[1750945620643,0.3242,107290.0,107280.0,1.4805197]
[1750945621348,0.3242,107290.0,107280.0,1.06092774]
[1750945621648,0.5105508,107290.0,107280.0,1.06092774]
[1750945622349,0.5105508,107290.0,107280.0,1.02862774]
[1750945622551,1.02604276,107290.0,107280.0,0.99772774]
[1750945622948,0.6064508,107290.0,107280.0,0.99772774]
[1750945623137,0.6054508,107290.0,107280.0,0.99772774]
[1750945623342,0.6054508,107290.0,107280.0,0.99872774]
[1750945624239,1.02504276,107290.0,107280.0,0.99872774]
[1750945624948,0.6054508,107290.0,107280.0,0.99872774]
[1750945625548,1.02504276,107290.0,107280.0,0.99872774]
[1750945625747,1.02504276,107290.0,107280.0,0.85300774]
[1750945627449,1.61920276,107290.0,107280.0,0.85300774]
[1750945627749,1.61620276,107290.0,107280.0,0.85300774]
[1750945627938,1.61620276,107290.0,107280.0,0.85400774]
[1750945628139,1.1966108,107290.0,107280.0,0.85400774]
[1750945628650,0.6024508,107290.0,107280.0,0.85400774]
[1750945628951,1.61620276,107290.0,107280.0,0.85400774]
[1750945629148,1.61620276,107290.0,107280.0,0.7236]
[1750945629349,1.61620276,107290.0,107280.0,0.9099681]
[1750945629550,1.61620276,107290.0,107280.0,0.3628]
[1750945629943,1.63925564,107290.0,107280.0,0.3628]
[1750945631951,1.63925564,107290.0,107280.0,0.5491681]
[1750945632152,1.21966368,107290.0,107280.0,0.5491681]
[1750945632352,1.63925564,107290.0,107280.0,0.5491681]
[1750945635148,1.04509564,107290.0,107280.0,0.3628]
[1750945635356,1.63925564,107290.0,107280.0,0.3628]
[1750945636855,1.63925564,107290.0,107270.0,0.3608]
[1750945636856,1.21954484,107290.0,107270.0,0.3608]
[1750945637156,0.326185,107270.0,107260.0,0.3608]
[1750945637355,1.73318984,107270.0,107260.0,0.3608]
[1750945637552,1.73318984,107270.0,107230.0,0.10647155]
[1750945637553,0.1864376,107240.0,107230.0,0.10647155]
[1750945637756,1.51038956,107240.0,107230.0,0.10647155]
[1750945638063,1.59601094,107240.0,107230.0,0.00093253]
[1750945638250,1.62681094,107240.0,107230.0,0.36173253]
[1750945639051,1.70042704,107240.0,107230.0,0.36173253]
[1750945639453,0.1864724,107220.0,107210.0,0.3608]
[1750945639655,0.1864898,107210.0,107200.0,0.36173279]
[1750945639851,1.04668176,107210.0,107200.0,0.54823999]
[1750945640358,0.6270898,107210.0,107200.0,0.54823999]
[1750945640557,0.5967898,107210.0,107200.0,0.57873999]
[1750945640748,0.5967898,107210.0,107200.0,0.58573999]
[1750945640952,0.5477898,107210.0,107200.0,0.58573999]
[1750945641355,0.5780898,107210.0,107200.0,0.58573999]
[1750945641556,0.99768176,107210.0,107200.0,0.58573999]
[1750945642352,0.66768176,107210.0,107200.0,0.58573999]
[1750945642652,0.2480898,107210.0,107200.0,0.58573999]
[1750945643158,0.2480898,107210.0,107200.0,0.59073999]
[1750945643359,0.5780898,107210.0,107200.0,0.59073999]
[1750945644149,0.5477898,107210.0,107200.0,0.62133999]
[1750945644551,1.32818176,107210.0,107200.0,0.01293279]
[1750945644763,1.36128176,107210.0,107200.0,0.01293279]
[1750945645458,1.3844001,107210.0,107200.0,0.01293279]
[1750945645760,1.7635601,107210.0,107200.0,0.01293279]
[1750945645960,2.1243601,107210.0,107200.0,0.01293279]
[1750945646359,1.0236001,107210.0,107200.0,0.19643999]
[1750945646666,1.6169601,107210.0,107200.0,0.19343999]
[1750945646961,2.66426814,107210.0,107200.0,0.22543999]
[1750945647150,2.66426814,107210.0,107200.0,0.25703999]
[1750945647353,2.6411498,107210.0,107200.0,0.25703999]
[1750945647552,1.1110498,107210.0,107200.0,0.25703999]
[1750945648262,1.1110498,107210.0,107200.0,0.61783999]
[1750945648763,0.5166898,107210.0,107200.0,0.61783999]
[1750945648964,0.1866898,107210.0,107200.0,0.61783999]
[1750945649462,0.5266898,107210.0,107200.0,0.61783999]
[1750945650959,0.94628176,107210.0,107200.0,0.61783999]
[1750945651157,0.60628176,107210.0,107200.0,0.61783999]
[1750945651459,0.5466898,107210.0,107200.0,0.61783999]
[1750945651661,0.1866898,107210.0,107200.0,0.61783999]
[1750945651861,0.1966898,107210.0,107200.0,0.61783999]
[1750945652267,0.1966898,107210.0,107200.0,0.76347999]
[1750945652462,0.0102,107210.0,107200.0,0.79347999]
[1750945652662,0.1966898,107210.0,107200.0,0.79347999]
[1750945652864,0.1966898,107210.0,107200.0,0.76347999]
[1750945653762,0.1966898,107210.0,107200.0,0.43133279]
[1750945653969,0.60628176,107210.0,107200.0,0.39973279]
[1750945654165,0.94768176,107210.0,107200.0,0.58623999]
[1750945654465,0.94768176,107210.0,107200.0,0.39973279]
[1750945654767,0.64768176,107210.0,107200.0,0.39973279]
[1750945655164,0.64768176,107210.0,107200.0,0.58623999]
[1750945655364,0.64768176,107210.0,107200.0,0.61673999]
[1750945655567,0.1966898,107210.0,107200.0,0.61673999]
[1750945657764,0.0102,107210.0,107200.0,0.61673999]
[1750945657974,0.0102,107210.0,107200.0,1.16633195]
[1750945659071,0.1966897,107210.0,107200.0,0.74673999]
[1750945659270,0.1966897,107210.0,107200.0,0.61673999]
[1750945659466,0.0102,107210.0,107200.0,0.61673999]
[1750945659966,0.0102,107210.0,107200.0,1.03633195]
[1750945660166,0.0102,107210.0,107200.0,1.16633195]
[1750945660364,0.0002,107210.0,107200.0,1.38633195]
[1750945662273,0.0002,107210.0,107200.0,1.17633195]
[1750945662772,0.0002,107210.0,107200.0,1.49669999]
[1750945663073,0.1866898,107210.0,107200.0,1.49669999]
[1750945663373,0.0002,107210.0,107200.0,1.49669999]
[1750945663564,0.0002,107210.0,107200.0,1.35669999]
[1750945664471,0.1866898,107210.0,107200.0,1.35669999]
[1750945664868,0.0002,107210.0,107200.0,1.35669999]
[1750945666169,0.93131756,107240.0,107220.0,0.3263012]
[1750945666469,0.2796926,107230.0,107220.0,0.6871012]
[1750945666771,0.68269652,107230.0,107220.0,0.7506012]
[1750945667367,0.71329652,107230.0,107220.0,0.7174012]
[1750945667567,1.16588848,107230.0,107220.0,0.6707842]
[1750945667874,1.16588848,107230.0,107220.0,0.5472724]
[1750945668875,1.16588848,107230.0,107220.0,0.5482724]
[1750945669263,1.16588848,107230.0,107220.0,0.3618]
[1750945669462,1.52668848,107230.0,107220.0,0.001]
[1750945669668,2.12104848,107230.0,107220.0,0.001]
[1750945669869,0.1864898,107210.0,107200.0,0.54823999]
[1750945670076,0.98908568,107210.0,107200.0,0.54823999]
[1750945670370,1.02098568,107210.0,107200.0,0.54823999]
[1750945670576,1.02098568,107210.0,107200.0,0.36173279]
[1750945671077,1.02098568,107210.0,107200.0,0.54823999]
[1750945671277,1.61534568,107210.0,107200.0,0.36173279]
[1750945671472,1.97614568,107210.0,107200.0,0.00093279]
[1750945671677,1.97614568,107210.0,107200.0,0.00293279]
[1750945673079,2.00924568,107210.0,107200.0,0.00293279]
[1750945673974,2.00924568,107210.0,107200.0,0.00693279]
[1750945676567,0.0466283,107200.0,107170.0,0.36173305]
[1750945676871,0.186542,107180.0,107170.0,0.00093305]
[1750945677180,0.52954592,107180.0,107170.0,0.42313305]
[1750945677371,1.01433788,107180.0,107170.0,0.00093305]
[1750945677571,1.04693788,107180.0,107170.0,0.00093305]
[1750945677879,1.40773788,107180.0,107170.0,0.00293305]
[1750945678177,1.55433788,107180.0,107170.0,0.01093305]
[1750945679172,1.56380451,107180.0,107170.0,0.01093305]
[1750945679471,0.1865942,107150.0,107140.0,0.36173331]
[1750945679677,0.7809142,107150.0,107140.0,0.54834501]
[1750945679878,0.8440142,107150.0,107140.0,0.54834501]
[1750945680070,0.8440142,107150.0,107140.0,0.36173331]
[1750945680266,1.57360616,107150.0,107140.0,0.00093331]
[1750945680481,1.57360616,107150.0,107140.0,0.18754501]
[1750945680782,1.67068306,107150.0,107140.0,0.00893331]
[1750945680975,2.03248306,107150.0,107140.0,0.01393331]
[1750945681372,3.5095809,107150.0,107140.0,0.01193331]
[1750945681677,3.5095809,107150.0,107110.0,0.00093358]
[1750945681678,0.1866465,107120.0,107110.0,0.00093358]
[1750945681881,1.90139846,107120.0,107110.0,0.00093358]
[1750945682172,1.96429846,107120.0,107110.0,0.00093358]
[1750945682676,0.02284267,107120.0,107110.0,0.54839748]
[1750945682877,0.02284267,107120.0,107110.0,0.64209748]
[1750945683070,0.02304832,107120.0,107110.0,0.64229748]
[1750945683275,0.1868465,107120.0,107110.0,0.64229748]
[1750945683477,0.5168465,107120.0,107110.0,0.64229748]
[1750945683680,0.1868465,107120.0,107110.0,0.64229748]
[1750945683876,0.2187465,107120.0,107110.0,0.64229748]
[1750945684181,0.8136665,107120.0,107110.0,0.64229748]
[1750945684577,0.83646605,107120.0,107110.0,0.64229748]
[1750945684778,0.8136665,107120.0,107110.0,0.64229748]
[1750945684974,0.8196665,107120.0,107110.0,0.64329748]
[1750945686483,1.97005846,107120.0,107110.0,0.00213358]
[1750945686785,2.03285846,107120.0,107110.0,0.00213358]
[1750945687785,1.6132665,107120.0,107110.0,0.00213358]
[1750945687986,2.03285846,107120.0,107110.0,0.00213358]
[1750945688884,2.04235989,107120.0,107110.0,0.00213358]
[1750945689087,2.03285846,107120.0,107110.0,0.00213358]
[1750945689482,2.17885846,107120.0,107110.0,0.00313358]
[1750945697000,2.17785846,107120.0,107110.0,0.00313358]
[1750945697193,1.99121196,107120.0,107060.0,0.0466867]
[1750945697392,0.96712066,107080.0,107070.0,0.28068738]
[1750945697588,0.1867332,107070.0,107060.0,0.2334244]
[1750945697792,0.4373265,107070.0,107060.0,0.4099155]
[1750945697995,0.3608,107070.0,107060.0,0.82950746]
[1750945698196,0.54778275,107070.0,107060.0,0.82950746]
[1750945698398,0.54778275,107070.0,107060.0,0.4099155]
[1750945698591,0.54778275,107070.0,107060.0,0.3956244]
[1750945698801,0.54878275,107070.0,107060.0,0.4006244]
[1750945699005,0.36204975,107070.0,107060.0,0.4006244]
[1750945699198,0.00124975,107070.0,107060.0,0.82021636]
[1750945699500,0.00124975,107070.0,107060.0,1.46101636]
[1750945699695,0.00124975,107070.0,107060.0,1.71101636]
[1750945700300,0.18997875,107070.0,107060.0,1.46401636]
[1750945700693,0.18997875,107070.0,107060.0,1.0770244]
[1750945700890,0.00324975,107070.0,107060.0,1.49661636]
[1750945701095,0.001,107090.0,107060.0,1.55987556]
[1750945701295,0.1976958,107090.0,107080.0,0.1867115]
[1750945701498,0.1976958,107090.0,107080.0,0.3018115]
[1750945702102,0.011,107090.0,107080.0,0.6118115]
[1750945702300,0.011,107090.0,107080.0,0.3918115]
[1750945702804,0.011,107090.0,107080.0,1.34220346]
[1750945703098,0.001,107090.0,107080.0,1.59420346]
[1750945703302,0.5474715,107110.0,107100.0,0.1866769]
[1750945703603,0.5474715,107110.0,107100.0,0.18692665]
[1750945703604,0.56647593,107110.0,107100.0,0.18692665]
[1750945703795,0.56647593,107110.0,107100.0,0.25032665]
[1750945704196,0.58883852,107110.0,107100.0,0.25032665]
[1750945704791,0.58983852,107110.0,107100.0,0.25232665]
[1750945706005,0.76983852,107110.0,107100.0,0.25232665]
[1750945706406,0.77083852,107110.0,107100.0,0.28182665]
[1750945706804,0.76883852,107110.0,107100.0,0.28182665]
[1750945707007,0.77083852,107110.0,107100.0,0.28182665]
[1750945707505,0.58416702,107110.0,107100.0,0.28182665]
[1750945707707,0.77182642,107110.0,107100.0,0.28182665]
[1750945708199,0.58516702,107110.0,107100.0,0.70141861]
[1750945708601,0.77182642,107110.0,107100.0,0.70141861]
[1750945709104,0.58182642,107110.0,107100.0,0.70141861]
[1750945709299,0.58182642,107110.0,107100.0,0.28182665]
[1750945709901,0.58182642,107110.0,107100.0,0.42786665]
[1750945710304,0.75182642,107110.0,107100.0,0.28182665]
[1750945710506,0.75182642,107110.0,107100.0,0.42786665]
[1750945713902,0.20536259,107110.0,107100.0,1.49825861]
[1750945714103,0.0002,107110.0,107100.0,2.16805057]
[1750945714306,1e-07,107120.0,107110.0,0.186661]
[1750945714609,1e-07,107120.0,107110.0,1.93700271]
[1750945714807,0.3618,107150.0,107140.0,0.1866087]
[1750945715004,0.7418,107150.0,107140.0,0.75224066]
[1750945715313,0.7418,107150.0,107140.0,0.42869845]
[1750945715809,0.381,107150.0,107140.0,0.78869845]
[1750945716001,0.181,107150.0,107140.0,1.56909041]
[1750945717211,0.181,107150.0,107140.0,1.57209041]
[1750945717212,0.182,107150.0,107140.0,1.57209041]
[1750945717802,0.002,107150.0,107140.0,0.79169845]
[1750945718011,0.002,107150.0,107140.0,0.64565845]
[1750945718207,0.3928,107150.0,107140.0,1.38645845]
[1750945718400,0.032,107150.0,107140.0,1.38645845]
[1750945718604,0.032,107150.0,107140.0,1.80605041]
[1750945719910,0.002,107150.0,107140.0,1.80605041]
[1750945720209,0.1885914,107150.0,107140.0,1.38589845]
[1750945720611,0.2085914,107150.0,107140.0,1.38821845]
[1750945720915,0.1985914,107150.0,107140.0,1.38821845]
[1750945722505,0.012,107150.0,107140.0,1.80781041]
[1750945723012,0.002,107150.0,107140.0,1.80781041]
[1750945724405,0.002,107150.0,107140.0,2.16861041]
[1750945725407,0.002,107150.0,107140.0,1.80781041]
[1750945726606,0.002,107150.0,107140.0,1.06525041]
[1750945726806,0.032,107150.0,107140.0,1.80785041]
[1750945727212,0.002,107150.0,107140.0,1.80785041]
[1750945727809,0.002,107150.0,107140.0,2.16865041]
[1750945729407,0.002,107150.0,107140.0,2.16849041]
[1750945729710,0.032,107150.0,107140.0,1.80717041]
[1750945730717,0.032,107150.0,107140.0,1.06525041]
[1750945731016,1.33918336,107150.0,107140.0,0.19005855]
[1750945731315,1.43318336,107150.0,107140.0,0.19005855]
[1750945731512,1.06318336,107150.0,107140.0,0.19005855]
[1750945731717,1.42318336,107150.0,107140.0,0.00344975]
[1750945732914,1.42318336,107150.0,107140.0,0.19005855]
[1750945733220,1.82894336,107150.0,107140.0,0.19005855]
[1750945733620,0.8135914,107150.0,107140.0,0.19005855]
[1750945735120,0.627,107150.0,107140.0,0.19005855]
[1750945735414,0.533,107150.0,107140.0,1.10529855]
[1750945735624,0.7195914,107150.0,107140.0,1.17009855]
[1750945736012,0.7499914,107150.0,107140.0,0.85009855]
[1750945736314,0.7499914,107150.0,107140.0,0.93081855]
[1750945736517,0.8143914,107150.0,107140.0,0.93081855]
[1750945737418,0.7820914,107150.0,107140.0,0.96321855]
[1750945737616,0.7820914,107150.0,107140.0,1.33321855]
[1750945738014,0.5955,107150.0,107140.0,0.96321855]
[1750945738414,0.7820914,107150.0,107140.0,0.96321855]
[1750945738809,0.363,107150.0,107140.0,1.74281051]
[1750945739018,0.0022,107150.0,107140.0,1.39385051]
[1750945739219,0.0022,107150.0,107140.0,2.13405051]
[1750945739522,1e-07,107150.0,107140.0,2.13385051]
[1750945741331,1e-07,107150.0,107140.0,1.39365051]
[1750945741525,1e-07,107150.0,107140.0,2.13417051]
[1750945743418,1e-07,107150.0,107140.0,2.20810953]
[1750945743725,1e-07,107150.0,107140.0,2.20842953]
[1750945743924,1e-07,107150.0,107140.0,2.13449051]
[1750945744120,1e-07,107150.0,107140.0,1.39365051]
[1750945744425,0.0309001,107150.0,107140.0,1.39699757]
[1750945744824,0.0638001,107150.0,107140.0,1.39699757]
[1750945745321,0.0638001,107150.0,107140.0,1.81658953]
[1750945745322,0.0309001,107150.0,107140.0,1.81658953]
[1750945745515,0.0309001,107150.0,107140.0,1.84878953]
[1750945745719,0.0309001,107150.0,107140.0,2.20958953]
[1750945746130,0.0309001,107150.0,107140.0,1.84878953]
[1750945746329,0.5782915,107150.0,107140.0,1.39699757]
[1750945746520,0.6445915,107150.0,107140.0,0.76931757]
[1750945746721,0.6445915,107150.0,107140.0,1.36431757]
[1750945747026,0.6445915,107150.0,107140.0,0.76931757]
[1750945747223,0.6445915,107150.0,107140.0,1.29021855]
[1750945747625,0.66733544,107150.0,107140.0,1.29021855]
[1750945748023,1.4269274,107150.0,107140.0,0.00324975]
[1750945748424,0.1866262,107130.0,107120.0,0.9738983]
[1750945748627,1.32781816,107130.0,107120.0,0.332158]
[1750945748826,1.41565597,107130.0,107120.0,0.332158]
[1750945749028,0.1866436,107120.0,107110.0,0.32757118]
[1750945749224,0.5794436,107120.0,107110.0,0.48309118]
[1750945749623,0.3928,107140.0,107130.0,0.1866262]
[1750945749828,0.60207199,107140.0,107130.0,0.1866262]
[1750945750431,1.03166395,107140.0,107130.0,0.1866262]
[1750945751032,0.61207199,107140.0,107130.0,0.1866262]
[1750945751636,0.64407199,107140.0,107130.0,0.1876262]
[1750945751836,1.06366395,107140.0,107130.0,0.001]
[1750945752035,1.39366395,107140.0,107130.0,0.1876262]
[1750945752438,0.76407199,107140.0,107130.0,0.1876262]
[1750945754338,0.76407129,107140.0,107130.0,0.1876262]
[1750945754836,0.76407129,107140.0,107120.0,0.64283026]
[1750945754837,0.1866262,107130.0,107120.0,0.3306088]
[1750945755038,0.6450262,107130.0,107120.0,0.4724888]
[1750945755334,0.4584,107130.0,107120.0,0.8024888]
[1750945755529,0.6450262,107130.0,107120.0,0.4724888]
[1750945756034,0.6470262,107130.0,107120.0,0.4724888]
[1750945757734,0.6470262,107130.0,107120.0,0.4734888]
[1750945758434,0.7870262,107130.0,107120.0,0.4734888]
[1750945758731,0.7870262,107130.0,107120.0,0.14688]
[1750945758935,1.20461816,107130.0,107120.0,0.3325236]
[1750945759139,1.20661816,107130.0,107120.0,0.3335236]
[1750945760627,0.7870262,107130.0,107120.0,0.3335236]
[1750945760832,0.7872262,107130.0,107120.0,0.3337236]
[1750945761339,1.3819462,107130.0,107120.0,0.3337236]
[1750945761540,0.6006,107130.0,107120.0,0.3337236]
[1750945761839,0.5355,107130.0,107120.0,0.6637236]
[1750945762035,0.5355,107130.0,107120.0,0.7680236]
[1750945762241,0.7221262,107130.0,107120.0,0.3980236]
[1750945762541,0.7529262,107130.0,107120.0,0.3980236]
[1750945762742,0.7509262,107130.0,107120.0,0.3327236]
[1750945762933,0.7840262,107130.0,107120.0,0.3347236]
[1750945763238,1.20361816,107130.0,107120.0,0.1888436]
[1750945764341,1.20261816,107130.0,107120.0,0.1868436]
[1750945764642,1.20461816,107130.0,107120.0,0.1878436]
[1750945764834,1.39461816,107130.0,107120.0,0.0012]
[1750945765034,1.39661816,107130.0,107120.0,0.0012]
[1750945766635,1.41919045,107130.0,107120.0,0.0012]
[1750945768856,1.43608932,107130.0,107120.0,0.0012]
[1750945769356,1.41351703,107130.0,107120.0,0.0012]
[1750945769656,1.66551703,107130.0,107120.0,0.0012]
[1750945769965,0.1866436,107120.0,107110.0,0.00093358]
[1750945770147,1.95369556,107120.0,107110.0,0.00093358]
[1750945770654,0.60627046,107100.0,107090.0,0.2333576]
[1750945770857,1.1422385,107100.0,107090.0,0.23261178]
[1750945771047,1.2036385,107100.0,107090.0,0.23261178]
[1750945771247,1.2036785,107100.0,107090.0,0.23261178]
[1750945771852,1.27957016,107100.0,107090.0,0.23261178]
[1750945772258,1.27957016,107100.0,107090.0,0.26291178]
[1750945772558,1.24887016,107100.0,107090.0,0.26291178]
[1750945772759,0.62337016,107100.0,107090.0,0.29601178]
[1750945773654,0.65577016,107100.0,107090.0,0.29601178]
[1750945774257,0.65677016,107100.0,107090.0,0.29901178]
[1750945774655,0.62437016,107100.0,107090.0,0.64901178]
[1750945774860,0.5484785,107100.0,107090.0,0.64901178]
[1750945775058,0.3618,107100.0,107090.0,1.06860374]
[1750945775259,0.001,107100.0,107090.0,1.06860374]
[1750945775462,0.001,107100.0,107090.0,1.42940374]
[1750945776857,0.62283845,107120.0,107110.0,0.1866609]
[1750945777057,0.54671318,107120.0,107110.0,0.5366609]
[1750945777362,0.56897048,107120.0,107110.0,0.6012609]
[1750945777662,0.38231148,107120.0,107110.0,0.6012609]
[1750945777862,0.0222573,107120.0,107110.0,0.6012609]
[1750945778159,0.0222573,107120.0,107110.0,0.67085286]
[1750945778361,0.6735572,107130.0,107120.0,0.1866435]
[1750945778563,0.74582002,107130.0,107120.0,0.2512435]
[1750945779753,0.74582002,107130.0,107120.0,0.1866435]
[1750945779754,1.45741198,107130.0,107120.0,0.1866435]
[1750945779955,1.23311198,107130.0,107120.0,0.1876435]
[1750945780960,1.60745138,107130.0,107120.0,0.001]
[1750945782061,0.1866609,107110.0,107100.0,0.0625]
[1750945782260,0.96705286,107110.0,107100.0,0.3425097]
[1750945782461,1.02925286,107110.0,107100.0,0.2170715]
[1750945782869,0.1866783,107100.0,107090.0,0.3747273]
[1750945783057,0.5779783,107100.0,107090.0,0.42388148]
[1750945783966,0.5779783,107100.0,107090.0,0.42688148]
[1750945784167,0.5779783,107100.0,107090.0,0.38020858]
[1750945784471,0.6102783,107100.0,107090.0,0.38020858]
[1750945785065,0.5779783,107100.0,107090.0,0.38020858]
[1750945785367,0.5779783,107100.0,107090.0,0.41080858]
[1750945785866,0.5474783,107100.0,107090.0,0.41080858]
[1750945786766,0.5803783,107100.0,107090.0,0.41080858]
[1750945786956,0.5815783,107100.0,107090.0,0.41400858]
[1750945787969,0.1878783,107100.0,107090.0,0.41400858]
[1750945788867,0.5486783,107100.0,107090.0,0.41400858]
[1750945789463,0.5486783,107100.0,107090.0,0.33400858]
[1750945789660,0.0012,107100.0,107090.0,1.09360054]
[1750945790059,0.0012,107100.0,107090.0,1.68836054]
[1750945790255,0.1878783,107100.0,107090.0,1.68836054]
[1750945791275,0.0012,107100.0,107090.0,1.09360054]
[1750945791464,0.0012,107100.0,107090.0,1.83396054]
[1750945794664,0.1878783,107100.0,107090.0,1.49396054]
[1750945794965,0.1878783,107100.0,107090.0,1.58396054]
[1750945795169,0.5486783,107100.0,107090.0,0.42400858]
[1750945795368,0.5486783,107100.0,107090.0,1.16432858]
[1750945795560,0.5486783,107100.0,107090.0,0.42400858]
[1750945795761,1.00117026,107100.0,107090.0,0.44900858]
[1750945796065,1.03247026,107100.0,107090.0,0.23880858]
[1750945797362,1.05479519,107100.0,107090.0,0.23880858]
[1750945798268,1.05479519,107100.0,107090.0,0.1928815]
[1750945799058,1.06479519,107100.0,107090.0,0.1928815]
[1750945800568,0.64420323,107100.0,107090.0,0.1898815]
[1750945800766,0.64520323,107100.0,107090.0,0.1908815]
[1750945801471,1.09567319,107100.0,107090.0,0.1908957]
[1750945801669,1.09567319,107100.0,107090.0,0.1888957]
[1750945801968,0.64520323,107100.0,107090.0,0.1888957]
[1750945802167,1.06479519,107100.0,107090.0,0.1888957]
[1750945802368,1.04247026,107100.0,107090.0,0.1888957]
[1750945802964,1.03247026,107100.0,107090.0,0.0022]
[1750945803267,1.41247026,107100.0,107090.0,0.1888958]
[1750945803466,2.00719026,107100.0,107090.0,0.1888958]
[1750945803771,2.00719026,107100.0,107090.0,0.0022]
[1750945803965,1.69719026,107100.0,107090.0,0.1888958]
[1750945804662,1.2775983,107100.0,107090.0,0.1888958]
[1750945804862,1.69719026,107100.0,107090.0,0.1888958]
[1750945805662,1.62719026,107100.0,107090.0,0.1888958]
[1750945805964,1.98719026,107100.0,107090.0,0.1888958]
[1750945806271,1.74719026,107100.0,107090.0,0.1888958]
[1750945806461,1.76937704,107100.0,107090.0,0.1888958]
[1750945806659,1.99937704,107100.0,107090.0,0.0022]
[1750945806863,1.99937697,107100.0,107090.0,0.0022]
[1750945809064,1.40465697,107100.0,107090.0,0.1888958]
[1750945809371,1.40465697,107100.0,107090.0,0.0022]
[1750945809372,1.99933697,107100.0,107090.0,0.0022]
[1750945809866,1.99933697,107100.0,107090.0,0.1888957]
[1750945810067,1.40465697,107100.0,107090.0,0.1888957]
[1750945810370,1.55974501,107100.0,107090.0,0.1888957]
[1750945811071,1.97933697,107100.0,107090.0,0.0022]
[1750945811573,1.97933697,107100.0,107090.0,0.1888957]
[1750945812076,1.38465697,107100.0,107090.0,0.0022]
[1750945812268,1.97933697,107100.0,107090.0,0.0022]
[1750945813869,1.97933697,107100.0,107090.0,0.1888958]
[1750945814175,1.97933697,107100.0,107090.0,0.0022]
[1750945814975,1.97933697,107100.0,107090.0,0.1888957]
[1750945816675,1.38465697,107100.0,107090.0,0.1888957]
[1750945816878,1.55970501,107100.0,107090.0,0.2201957]
[1750945817078,1.55970501,107100.0,107090.0,0.2526957]
[1750945817580,1.97929697,107100.0,107090.0,0.066]
[1750945817874,1.97929697,107100.0,107090.0,0.0022]
[1750945822081,1.52836501,107100.0,107090.0,0.1888958]
[1750945822284,1.17546501,107100.0,107090.0,0.2515958]
[1750945822477,1.17546501,107100.0,107090.0,0.2833958]
[1750945822478,0.58086501,107100.0,107090.0,0.2833958]
[1750945824180,1.00045697,107100.0,107090.0,0.2515958]